fUST/lending_fUST_20250312
["ID","MTS","AMOUNT","RATE_DAILY","PERIOD"]
[356011317,1741794660550,-1892.44,0.00023287,2]
[356011318,1741794660560,-739.65,0.00023287,2]
[356011319,1741794660572,-660.77,0.00023287,2]
[356011320,1741794660583,-500.0,0.00023287,2]
[356011321,1741794660593,-500.0,0.00023287,2]
[356011322,1741794660604,-1356.46,0.00023287,2]
[356011323,1741794660614,-500.0,0.00023287,2]
[356011324,1741794660624,-522.41,0.00023287,2]
[356011325,1741794660635,-500.0,0.00023287,2]
[356011326,1741794660645,-506.04,0.00023287,2]
[356011327,1741794660655,-1328.41,0.00023287,2]
[356011328,1741794660665,-1030.75,0.00023287,2]
[356011329,1741794660675,-500.0,0.00023287,2]
[356011330,1741794660685,-683.89,0.00023287,2]
[356011331,1741794660694,-500.0,0.00023287,2]
[356011332,1741794660705,-914.22,0.00023287,2]
[356011333,1741794660714,-972.73,0.00023287,2]
[356011334,1741794660724,-2819.17,0.00023287,2]
[356011335,1741794660733,-954.19,0.00023287,2]
[356011336,1741794660742,-2348.87,0.00023287,2]
[356011337,1741794660752,-500.0,0.00023287,2]
[356011338,1741794660761,-500.0,0.00023287,2]
[356011339,1741794660771,-500.0,0.00023287,2]
[356011340,1741794660780,-581.01,0.00023287,2]
[356011341,1741794660791,-500.0,0.00023287,2]
[356011342,1741794660800,-500.0,0.00023287,2]
[356011343,1741794660810,-2409.61,0.00023287,2]
[356011344,1741794660820,-500.0,0.00023287,2]
[356011345,1741794660830,-500.0,0.00023287,2]
[356011346,1741794660839,-1945.35,0.00023287,2]
[356011347,1741794660848,-772.1,0.00023287,2]
[356011348,1741794660858,-7714.65,0.00023287,2]
[356011349,1741794660868,-500.0,0.00023287,2]
[356011350,1741794660878,-1372.84,0.00023287,2]
[356011351,1741794660888,-500.0,0.00023287,2]
[356011352,1741794660898,-500.0,0.00023287,2]
[356011353,1741794660908,-500.0,0.00023287,2]
[356011354,1741794660918,-719.17848329,0.00023289,2]
[356011355,1741794660928,-999.94,0.0002356,2]
[356011356,1741794660938,-500.0,0.00023561,2]
[356011357,1741794660948,-500.0,0.00023561,5]
[356011358,1741794660958,-715.23,0.00023561,2]
[356011359,1741794660968,-275.54732338,0.00023561,2]
[356011360,1741794660978,-1063.66,0.00023561,2]
[356011361,1741794660988,-500.0,0.00023561,2]
[356011362,1741794660998,-613.14,0.00023561,2]
[356011363,1741794661008,-500.0,0.00023561,2]
[356011364,1741794661018,-500.0,0.00023561,2]
[356011365,1741794661028,-315.45195104,0.00023561,2]
[356011366,1741794661039,-512.69,0.00023561,2]
[356011367,1741794661048,-500.0,0.00023561,2]
[356011368,1741794661058,-500.0,0.00023561,2]
[356011369,1741794661068,-500.0,0.00023561,2]
[356011370,1741794661078,-355.85274726,0.00023561,2]
[356011371,1741794661088,-500.0,0.00023561,2]
[356011372,1741794661097,-500.0,0.00023561,2]
[356011373,1741794661108,-500.0,0.00023561,2]
[356011374,1741794661118,-581.03157363,0.00023561,2]
[356011375,1741794661128,-500.0,0.00023561,2]
[356011376,1741794661138,-500.0,0.00023561,2]
[356011377,1741794661147,-500.0,0.00023561,2]
[356011378,1741794661157,-539.28,0.00023561,2]
[356011379,1741794661167,-500.0,0.00023561,2]
[356011380,1741794661176,-500.0,0.00023561,2]
[356011381,1741794661186,-500.0,0.00023561,2]
[356011382,1741794661195,-233.11560173,0.00023561,2]
[356011383,1741794661204,-500.0,0.00023561,2]
[356011384,1741794661214,-1022.31,0.00023561,2]
[356011385,1741794661224,-1009.59,0.00023561,2]
[356011386,1741794661234,-500.0,0.00023561,2]
[356011387,1741794661243,-500.0,0.00023561,2]
[356011388,1741794661253,-500.0,0.00023561,2]
[356011389,1741794661263,-500.0,0.00023561,2]
[356011390,1741794661273,-500.0,0.00023561,2]
[356011391,1741794661283,-1471.75,0.00023561,2]
[356011392,1741794661295,-914.37,0.00023561,2]
[356011393,1741794661305,-522.55,0.00023561,2]
[356011394,1741794661314,-941.18,0.00023561,2]
[356011395,1741794661324,-212.4288886,0.00023561,2]
[356011396,1741794661334,-500.0,0.00023561,2]
[356011397,1741794661344,-500.0,0.00023561,2]
[356011398,1741794661353,-1862.45,0.00023561,2]
[356011399,1741794661363,-500.0,0.00023561,2]
[356011400,1741794661372,-500.0,0.00023561,2]
[356011401,1741794661382,-530.35,0.00023561,2]
[356011402,1741794661392,-500.0,0.00023561,2]
[356011403,1741794661402,-500.0,0.00023561,2]
[356011404,1741794661412,-500.0,0.00023561,2]
[356011405,1741794661421,-555.86,0.00023561,2]
[356011406,1741794661430,-890.46,0.00023561,2]
[356011407,1741794661440,-500.0,0.00023561,2]
[356011408,1741794661618,-500.0,0.00023561,2]
[356011409,1741794661629,-500.0,0.00023561,2]
[356011410,1741794661639,-581.21,0.00023561,2]
[356011411,1741794661648,-500.0,0.00023561,2]
[356011412,1741794661658,-570.22,0.00023561,2]
[356011413,1741794661667,-500.0,0.00023561,2]
[356011414,1741794661677,-1798.17,0.00023561,2]
[356011415,1741794661687,-500.0,0.00023561,2]
[356011416,1741794661696,-2164.57,0.00023561,2]
[356011417,1741794661706,-1121.99,0.00023561,2]
[356011418,1741794661715,-500.0,0.00023561,2]
[356011419,1741794661725,-500.0,0.00023561,2]
[356011420,1741794661735,-574.60422472,0.00023561,2]
[356011421,1741794661744,-1604.04,0.00023561,2]
[356011422,1741794661753,-511.53,0.00023561,2]
[356011423,1741794661762,-1782.15,0.00023561,2]
[356011424,1741794661772,-1013.36,0.00023561,2]
[356011425,1741794661781,-500.0,0.00023561,2]
[356011426,1741794661791,-3181.93,0.00023561,2]
[356011427,1741794661800,-500.0,0.00023561,2]
[356011428,1741794661809,-500.0,0.00023561,2]
[356011429,1741794661819,-151.0,0.00023561,7]
[356011430,1741794661828,-500.0,0.00023561,2]
[356011431,1741794661838,-151.0,0.00023561,7]
[356011432,1741794661847,-500.0,0.00023561,2]
[356011433,1741794661857,-500.0,0.00023561,2]
[356011434,1741794661866,-151.0,0.00023561,7]
[356011435,1741794661875,-500.0,0.00023561,2]
[356011436,1741794661885,-396.00320192,0.00023561,2]
[356011437,1741794661894,-1060.22,0.00023561,2]
[356011438,1741794661904,-1325.79,0.00023561,2]
[356011439,1741794661913,-500.0,0.00023561,2]
[356011440,1741794661922,-151.0,0.00023561,7]
[356011441,1741794661931,-243.48525,0.00023561,7]
[356011442,1741794661941,-788.48,0.00023561,2]
[356011443,1741794661950,-151.930361,0.00023561,7]
[356011444,1741794661960,-500.0,0.00023561,2]
[356011445,1741794661969,-612.89,0.00023561,2]
[356011446,1741794661979,-520.8,0.00023561,2]
[356011447,1741794661989,-500.0,0.00023561,2]
[356011448,1741794661999,-500.0,0.00023561,2]
[356011449,1741794662009,-500.0,0.00023561,2]
[356011450,1741794662019,-630.42,0.00023561,2]
[356011451,1741794662028,-151.0,0.00023561,7]
[356011452,1741794662038,-500.0,0.00023561,2]
[356011453,1741794662047,-589.49,0.00023561,2]
[356011454,1741794662057,-500.0,0.00023561,2]
[356011455,1741794662066,-151.0,0.00023561,7]
[356011456,1741794662076,-1492.56,0.00023561,2]
[356011457,1741794662086,-160.04616876,0.00023561,2]
[356011458,1741794662095,-500.0,0.00023561,2]
[356011459,1741794662105,-748.84,0.00023561,2]
[356011460,1741794662115,-694.14,0.00023561,2]
[356011461,1741794662125,-500.0,0.00023561,2]
[356011462,1741794662135,-151.0,0.00023561,7]
[356011463,1741794662145,-1032.76,0.00023561,2]
[356011464,1741794662154,-500.0,0.00023561,2]
[356011465,1741794662164,-580.19,0.00023561,2]
[356011466,1741794662174,-540.53,0.00023561,2]
[356011467,1741794662184,-791.38,0.00023561,2]
[356011468,1741794662193,-500.0,0.00023561,2]
[356011469,1741794662203,-500.0,0.00023561,2]
[356011470,1741794662212,-2803.863524,0.00023561,7]
[356011471,1741794662222,-500.0,0.00023561,2]
[356011472,1741794662232,-2803.863524,0.00023561,7]
[356011473,1741794662241,-500.0,0.00023561,2]
[356011474,1741794662251,-577.08,0.00023561,2]
[356011475,1741794662260,-500.0,0.00023561,2]
[356011476,1741794662270,-500.0,0.00023561,2]
[356011477,1741794662279,-1084.93,0.00023561,2]
[356011478,1741794662290,-500.0,0.00023561,2]
[356011479,1741794662299,-193.000572,0.00023561,7]
[356011480,1741794662310,-500.0,0.00023561,2]
[356011481,1741794662320,-500.0,0.00023561,2]
[356011482,1741794662330,-1183.97,0.00023561,2]
[356011483,1741794662340,-376.944011,0.00023561,7]
[356011484,1741794662350,-1076.98,0.00023561,2]
[356011485,1741794662360,-2510.1,0.00023561,2]
[356011486,1741794662369,-907.8,0.00023561,2]
[356011487,1741794662379,-204.882462,0.00023561,7]
[356011488,1741794662389,-376.944011,0.00023561,7]
[356011489,1741794662398,-204.882462,0.00023561,7]
[356011490,1741794662408,-500.0,0.00023561,2]
[356011491,1741794662417,-500.0,0.00023561,2]
[356011492,1741794662427,-778.23,0.00023561,2]
[356011493,1741794662436,-787.23,0.00023561,2]
[356011494,1741794662445,-944.52,0.00023561,2]
[356011495,1741794662455,-614.58,0.00023561,2]
[356011496,1741794662464,-500.0,0.00023561,2]
[356011497,1741794662473,-500.0,0.00023561,2]
[356011498,1741794662483,-500.0,0.00023561,2]
[356011499,1741794662493,-1106.9,0.00023561,2]
[356011500,1741794662506,-1034.28,0.00023561,2]
[356011501,1741794662516,-576.5,0.00023561,2]
[356011502,1741794662525,-4410.72,0.00023561,2]
[356011503,1741794662535,-1371.15,0.00023561,2]
[356011504,1741794662547,-919.97,0.00023561,2]
[356011505,1741794662556,-500.0,0.00023561,2]
[356011506,1741794662566,-1336.41,0.00023561,2]
[356011507,1741794662576,-519.85,0.00023561,2]
[356011508,1741794662587,-500.0,0.00023561,2]
[356011509,1741794662597,-160.568377,0.00023561,7]
[356011510,1741794662607,-500.0,0.00023561,2]
[356011511,1741794662616,-500.0,0.00023561,2]
[356011512,1741794662626,-1538.87,0.00023561,2]
[356011513,1741794662636,-1391.97,0.00023561,2]
[356011514,1741794662646,-500.0,0.00023561,2]
[356011515,1741794662655,-151.0,0.00023561,7]
[356011516,1741794662665,-151.0,0.00023561,2]
[356011517,1741794662674,-500.0,0.00023561,2]
[356011518,1741794662684,-151.0,0.00023561,2]
[356011519,1741794662693,-151.0,0.00023561,7]
[356011520,1741794662703,-500.0,0.00023561,2]
[356011521,1741794662713,-1043.35,0.00023561,2]
[356011522,1741794662722,-500.0,0.00023561,2]
[356011523,1741794662732,-28259.29,0.00023561,2]
[356011524,1741794662742,-1160.36,0.00023561,2]
[356011525,1741794662752,-682.07,0.00023561,2]
[356011526,1741794662761,-658.96,0.00023561,2]
[356011527,1741794662771,-151.0,0.00023561,7]
[356011528,1741794662780,-1295.19,0.00023561,2]
[356011529,1741794662792,-1426.77,0.00023561,2]
[356011530,1741794662802,-518.40201494,0.00023561,2]
[356011531,1741794662813,-500.0,0.00023561,2]
[356011532,1741794662823,-1318.16,0.00023561,2]
[356011533,1741794662833,-1460.16,0.00023561,2]
[356011534,1741794662842,-2291.77,0.00023561,2]
[356011535,1741794662852,-14439.21,0.00023561,2]
[356011536,1741794662861,-500.0,0.00023561,2]
[356011537,1741794662871,-500.0,0.00023561,2]
[356011538,1741794662880,-828.25,0.00023561,2]
[356011539,1741794662890,-500.0,0.00023561,2]
[356011540,1741794662899,-151.0,0.00023561,7]
[356011541,1741794662909,-154.911454,0.00023561,7]
[356011542,1741794662919,-1100.44,0.00023561,2]
[356011543,1741794662930,-151.151161,0.00023561,7]
[356011544,1741794662940,-151.0,0.00023561,7]
[356011545,1741794662950,-938.73,0.00023561,2]
[356011546,1741794662960,-3223.36,0.00023561,2]
[356011547,1741794662970,-500.0,0.00023561,2]
[356011548,1741794662980,-838.96,0.00023561,2]
[356011549,1741794662989,-500.0,0.00023561,2]
[356011550,1741794662999,-160.070529,0.00023561,7]
[356011551,1741794663009,-2588.33,0.00023561,2]
[356011552,1741794663018,-500.0,0.00023561,2]
[356011553,1741794663029,-517.2,0.00023561,2]
[356011554,1741794663040,-2738.0,0.00023561,2]
[356011555,1741794663050,-174.71816714,0.00023561,2]
[356011556,1741794663061,-647.60390898,0.00023561,2]
[356011557,1741794663071,-1932.0,0.00023561,2]
[356011558,1741794663081,-500.0,0.00023561,2]
[356011559,1741794663092,-1564.51,0.00023561,2]
[356011560,1741794663102,-676.77,0.00023561,2]
[356011561,1741794663112,-704.21,0.00023561,2]
[356011562,1741794663124,-758.91,0.00023561,2]
[356011563,1741794663135,-160.0,0.00023561,7]
[356011564,1741794663146,-500.0,0.00023561,2]
[356011565,1741794663157,-373.980464,0.00023561,7]
[356011566,1741794663168,-1282.67,0.00023561,2]
[356011567,1741794663178,-500.0,0.00023561,2]
[356011568,1741794663188,-373.980464,0.00023561,7]
[356011569,1741794663199,-665.39,0.00023561,2]
[356011570,1741794663209,-911.43,0.00023561,2]
[356011571,1741794663219,-1119.13,0.00023561,2]
[356011572,1741794663229,-151.0,0.00023561,7]
[356011573,1741794663239,-931.73,0.00023561,2]
[356011574,1741794663249,-250.61500891,0.00023561,2]
[356011575,1741794663259,-1076.48,0.00023561,2]
[356011576,1741794663269,-972.28,0.00023561,2]
[356011577,1741794663279,-793.188676,0.00023561,7]
[356011578,1741794663293,-151.0,0.00023561,7]
[356011579,1741794663303,-500.0,0.00023561,2]
[356011580,1741794663315,-793.188676,0.00023561,7]
[356011581,1741794663325,-1892.44,0.00023561,2]
[356011582,1741794663335,-739.65,0.00023561,2]
[356011583,1741794663345,-660.77,0.00023561,2]
[356011584,1741794663356,-151.0,0.00023561,7]
[356011585,1741794663366,-500.0,0.00023561,2]
[356011586,1741794663376,-500.0,0.00023561,2]
[356011587,1741794663386,-1356.46,0.00023561,2]
[356011588,1741794663396,-500.0,0.00023561,2]
[356011589,1741794663406,-522.41,0.00023561,2]
[356011590,1741794663416,-500.0,0.00023561,2]
[356011591,1741794663427,-506.04,0.00023561,2]
[356011592,1741794663437,-1328.41,0.00023561,2]
[356011593,1741794663447,-1030.75,0.00023561,2]
[356011594,1741794663457,-500.0,0.00023561,2]
[356011595,1741794663467,-151.0,0.00023561,7]
[356011596,1741794663477,-683.89,0.00023561,2]
[356011597,1741794663487,-500.0,0.00023561,2]
[356011598,1741794663498,-619.702695,0.00023561,7]
[356011599,1741794663510,-259.899353,0.00023561,7]
[356011600,1741794663520,-914.22,0.00023561,2]
[356011601,1741794663530,-972.73,0.00023561,2]
[356011602,1741794663543,-619.702695,0.00023561,7]
[356011603,1741794663553,-2819.17,0.00023561,2]
[356011604,1741794663563,-954.19,0.00023561,2]
[356011605,1741794663573,-2348.87,0.00023561,2]
[356011606,1741794663585,-160.0,0.00023561,7]
[356011607,1741794663595,-500.0,0.00023561,2]
[356011608,1741794663606,-590.27136488,0.00023561,2]
[356011609,1741794663616,-500.0,0.00023561,2]
[356011610,1741794663626,-581.01,0.00023561,2]
[356011611,1741794663636,-500.0,0.00023561,2]
[356011612,1741794663646,-500.0,0.00023561,2]
[356011613,1741794663656,-2409.61,0.00023561,2]
[356011614,1741794663666,-500.0,0.00023561,2]
[356011615,1741794663676,-1945.35,0.00023561,2]
[356011616,1741794663686,-262.011423,0.00023561,7]
[356011617,1741794663696,-151.0,0.00023561,7]
[356011618,1741794663705,-772.1,0.00023561,2]
[356011619,1741794663715,-7714.65,0.00023561,2]
[356011620,1741794663725,-500.0,0.00023561,2]
[356011621,1741794663736,-262.011423,0.00023561,7]
[356011622,1741794663746,-1372.84,0.00023561,2]
[356011623,1741794663756,-151.0,0.00023561,7]
[356011624,1741794663766,-500.0,0.00023561,2]
[356011625,1741794663776,-500.0,0.00023561,2]
[356011626,1741794663785,-1666.878913,0.00023561,7]
[356011627,1741794663798,-500.0,0.00023561,2]
[356011628,1741794663809,-719.17848329,0.00023625,2]
[356011629,1741794663820,-500.0,0.00023835,2]
[356011630,1741794663829,-500.0,0.00023835,5]
[356011631,1741794663840,-715.23,0.00023835,2]
[356011632,1741794663850,-1063.66,0.00023835,2]
[356011633,1741794663860,-500.0,0.00023835,2]
[356011634,1741794663870,-613.14,0.00023835,2]
[356011635,1741794663880,-500.0,0.00023835,2]
[356011636,1741794663890,-500.0,0.00023835,2]
[356011637,1741794663900,-512.69,0.00023835,2]
[356011638,1741794663909,-500.0,0.00023835,2]
[356011639,1741794663920,-500.0,0.00023835,2]
[356011640,1741794663930,-500.0,0.00023835,2]
[356011641,1741794663939,-500.0,0.00023835,2]
[356011642,1741794663949,-500.0,0.00023835,2]
[356011643,1741794663959,-589.65731906,0.00023835,2]
[356011644,1741794663969,-500.0,0.00023835,2]
[356011645,1741794663979,-500.0,0.00023835,2]
[356011646,1741794663989,-500.0,0.00023835,2]
[356011647,1741794664000,-539.28,0.00023835,2]
[356011648,1741794664010,-500.0,0.00023835,2]
[356011649,1741794664020,-500.0,0.00023835,2]
[356011650,1741794664030,-500.0,0.00023835,2]
[356011651,1741794664040,-500.0,0.00023835,2]
[356011652,1741794664050,-1022.31,0.00023835,2]
[356011653,1741794664060,-1009.59,0.00023835,2]
[356011654,1741794664071,-500.0,0.00023835,2]
[356011655,1741794664080,-500.0,0.00023835,2]
[356011656,1741794664090,-500.0,0.00023835,2]
[356011657,1741794664100,-500.0,0.00023835,2]
[356011658,1741794664110,-498.79734915,0.00023835,2]
[356011659,1741794664120,-1471.75,0.00023835,2]
[356011660,1741794664130,-914.37,0.00023835,2]
[356011661,1741794664140,-522.55,0.00023835,2]
[356011662,1741794664149,-941.18,0.00023835,2]
[356011663,1741794664159,-500.0,0.00023835,2]
[356011664,1741794664168,-218.5467675,0.00023835,2]
[356011665,1741794664178,-1862.45,0.00023835,2]
[356011666,1741794664187,-500.0,0.00023835,2]
[356011667,1741794664197,-500.0,0.00023835,2]
[356011668,1741794664207,-530.35,0.00023835,2]
[356011669,1741794664217,-500.0,0.00023835,2]
[356011670,1741794664227,-311.5,0.00023835,2]
[356011671,1741794664237,-500.0,0.00023835,2]
[356011672,1741794664247,-555.86,0.00023835,2]
[356011673,1741794664258,-890.46,0.00023835,2]
[356011674,1741794664268,-500.0,0.00023835,2]
[356011675,1741794664278,-500.0,0.00023835,2]
[356011676,1741794664289,-500.0,0.00023835,2]
[356011677,1741794664298,-581.21,0.00023835,2]
[356011678,1741794664308,-500.0,0.00023835,2]
[356011679,1741794664317,-570.22,0.00023835,2]
[356011680,1741794664328,-500.0,0.00023835,2]
[356011681,1741794664347,-1798.17,0.00023835,2]
[356011682,1741794664367,-500.0,0.00023835,2]
[356011683,1741794664377,-2164.57,0.00023835,2]
[356011684,1741794664386,-1121.99,0.00023835,2]
[356011685,1741794664396,-500.0,0.00023835,2]
[356011686,1741794664405,-500.0,0.00023835,2]
[356011687,1741794664550,-1604.04,0.00023835,2]
[356011688,1741794664578,-511.53,0.00023835,2]
[356011689,1741794664589,-1782.15,0.00023835,2]
[356011690,1741794664599,-1013.36,0.00023835,2]
[356011691,1741794664609,-512.42216171,0.00023835,2]
[356011692,1741794664618,-3181.93,0.00023835,2]
[356011693,1741794664628,-500.0,0.00023835,2]
[356011694,1741794664637,-500.0,0.00023835,2]
[356011695,1741794664647,-500.0,0.00023835,2]
[356011696,1741794664656,-508.42,0.00023835,2]
[356011697,1741794664665,-500.0,0.00023835,2]
[356011698,1741794664675,-500.0,0.00023835,2]
[356011699,1741794664684,-1060.22,0.00023835,2]
[356011700,1741794664694,-1325.79,0.00023835,2]
[356011701,1741794664703,-500.0,0.00023835,2]
[356011702,1741794664713,-788.48,0.00023835,2]
[356011703,1741794664722,-500.0,0.00023835,2]
[356011704,1741794664731,-612.89,0.00023835,2]
[356011705,1741794664741,-520.8,0.00023835,2]
[356011706,1741794664751,-500.0,0.00023835,2]
[356011707,1741794664760,-500.0,0.00023835,2]
[356011708,1741794664769,-500.0,0.00023835,2]
[356011709,1741794664779,-630.42,0.00023835,2]
[356011710,1741794664789,-500.0,0.00023835,2]
[356011711,1741794664799,-589.49,0.00023835,2]
[356011712,1741794664808,-500.0,0.00023835,2]
[356011713,1741794664818,-1492.56,0.00023835,2]
[356011714,1741794664827,-500.0,0.00023835,2]
[356011715,1741794664836,-748.84,0.00023835,2]
[356011716,1741794664845,-694.14,0.00023835,2]
[356011717,1741794664855,-500.0,0.00023835,2]
[356011718,1741794664864,-1032.76,0.00023835,2]
[356011719,1741794664874,-338.89568724,0.00023835,2]
[356011720,1741794664883,-580.19,0.00023835,2]
[356011721,1741794664892,-540.53,0.00023835,2]
[356011722,1741794664902,-791.38,0.00023835,2]
[356011723,1741794664911,-500.0,0.00023835,2]
[356011724,1741794664921,-500.0,0.00023835,2]
[356011725,1741794664931,-500.0,0.00023835,2]
[356011726,1741794664941,-500.0,0.00023835,2]
[356011727,1741794664950,-577.08,0.00023835,2]
[356011728,1741794664960,-500.0,0.00023835,2]
[356011729,1741794664970,-500.0,0.00023835,2]
[356011730,1741794664979,-1084.93,0.00023835,2]
[356011731,1741794664989,-581.14234095,0.00023835,2]
[356011732,1741794664998,-500.0,0.00023835,2]
[356011733,1741794665008,-407.41317872,0.00023835,2]
[356011734,1741794665017,-1183.97,0.00023835,2]
[356011735,1741794665027,-1076.98,0.00023835,2]
[356011736,1741794665036,-2510.1,0.00023835,2]
[356011737,1741794665048,-907.8,0.00023835,2]
[356011738,1741794665057,-500.0,0.00023835,2]
[356011739,1741794665067,-500.0,0.00023835,2]
[356011740,1741794665077,-778.23,0.00023835,2]
[356011741,1741794665086,-787.23,0.00023835,2]
[356011742,1741794665096,-944.52,0.00023835,2]
[356011743,1741794665106,-614.58,0.00023835,2]
[356011744,1741794665117,-500.0,0.00023835,2]
[356011745,1741794665127,-500.0,0.00023835,2]
[356011746,1741794665136,-500.0,0.00023835,2]
[356011747,1741794665147,-1106.9,0.00023835,2]
[356011748,1741794665156,-1034.28,0.00023835,2]
[356011749,1741794665166,-4410.72,0.00023835,2]
[356011750,1741794665175,-576.5,0.00023835,2]
[356011751,1741794665184,-1371.15,0.00023835,2]
[356011752,1741794665194,-919.97,0.00023835,2]
[356011753,1741794665203,-500.0,0.00023835,2]
[356011754,1741794665213,-1336.41,0.00023835,2]
[356011755,1741794665222,-519.85,0.00023835,2]
[356011756,1741794665232,-500.0,0.00023835,2]
[356011757,1741794665242,-500.0,0.00023835,2]
[356011758,1741794665252,-500.0,0.00023835,2]
[356011759,1741794665261,-1538.87,0.00023835,2]
[356011760,1741794665271,-1391.97,0.00023835,2]
[356011761,1741794665280,-500.0,0.00023835,2]
[356011762,1741794665291,-500.0,0.00023835,2]
[356011763,1741794665300,-500.0,0.00023835,2]
[356011764,1741794665310,-1043.35,0.00023835,2]
[356011765,1741794665319,-500.0,0.00023835,2]
[356011766,1741794665328,-28259.29,0.00023835,2]
[356011767,1741794665338,-1160.36,0.00023835,2]
[356011768,1741794665347,-658.96,0.00023835,2]
[356011769,1741794665356,-682.07,0.00023835,2]
[356011770,1741794665366,-1295.19,0.00023835,2]
[356011771,1741794665375,-1426.77,0.00023835,2]
[356011772,1741794665384,-500.0,0.00023835,2]
[356011773,1741794665395,-1318.16,0.00023835,2]
[356011774,1741794665404,-1460.16,0.00023835,2]
[356011775,1741794665413,-2291.77,0.00023835,2]
[356011776,1741794665422,-14439.21,0.00023835,2]
[356011777,1741794665432,-500.0,0.00023835,2]
[356011778,1741794665441,-500.0,0.00023835,2]
[356011779,1741794665450,-828.25,0.00023835,2]
[356011780,1741794665460,-500.0,0.00023835,2]
[356011781,1741794665469,-1100.44,0.00023835,2]
[356011782,1741794665479,-938.73,0.00023835,2]
[356011783,1741794665488,-3223.36,0.00023835,2]
[356011784,1741794665500,-500.0,0.00023835,2]
[356011785,1741794665510,-838.96,0.00023835,2]
[356011786,1741794665519,-500.0,0.00023835,2]
[356011787,1741794665529,-2588.33,0.00023835,2]
[356011788,1741794665540,-620.49396331,0.00023835,2]
[356011789,1741794665550,-517.2,0.00023835,2]
[356011790,1741794665559,-2738.0,0.00023835,2]
[356011791,1741794665568,-1932.0,0.00023835,2]
[356011792,1741794665579,-500.0,0.00023835,2]
[356011793,1741794665590,-1564.51,0.00023835,2]
[356011794,1741794665600,-676.77,0.00023835,2]
[356011795,1741794665610,-704.21,0.00023835,2]
[356011796,1741794665619,-758.91,0.00023835,2]
[356011797,1741794665629,-500.0,0.00023835,2]
[356011798,1741794665638,-1282.67,0.00023835,2]
[356011799,1741794665647,-500.0,0.00023835,2]
[356011800,1741794665657,-665.39,0.00023835,2]
[356011801,1741794665666,-911.43,0.00023835,2]
[356011802,1741794665675,-1119.13,0.00023835,2]
[356011803,1741794665684,-931.73,0.00023835,2]
[356011804,1741794665694,-1076.48,0.00023835,2]
[356011805,1741794665703,-972.28,0.00023835,2]
[356011806,1741794665713,-346.00397788,0.00023835,2]
[356011807,1741794665723,-1892.44,0.00023835,2]
[356011808,1741794665732,-739.65,0.00023835,2]
[356011809,1741794665742,-660.77,0.00023835,2]
[356011810,1741794665751,-500.0,0.00023835,2]
[356011811,1741794665761,-500.0,0.00023835,2]
[356011812,1741794665770,-1356.46,0.00023835,2]
[356011813,1741794665779,-500.0,0.00023835,2]
[356011814,1741794665790,-522.41,0.00023835,2]
[356011815,1741794665800,-500.0,0.00023835,2]
[356011816,1741794665809,-506.04,0.00023835,2]